[Event "Live Chess"]
[Site "Chess.com"]
[Date "2023.05.20"]
[Round "-"]
[White "IgorSchukin"]
[Black "grillage"]
[Result "1-0"]
[WhiteElo "1740"]
[BlackElo "1853"]
[TimeControl "300"]
[EndTime "15:44:28 PDT"]
[Termination "IgorSchukin won by resignation"]

1. e4 {[%clk 0:04:59]} 1... d5 {[%clk 0:04:58.3]} 2. exd5 {[%clk 0:04:57.3]}
2... Qxd5 {[%clk 0:04:57.4]} 3. Nc3 {[%clk 0:04:56.8]} 3... Qd8 {[%clk
0:04:55.3]} 4. d4 {[%clk 0:04:55]} 4... Nf6 {[%clk 0:04:52]} 5. g3 {[%clk
0:04:53.4]} 5... Nc6 {[%clk 0:04:46.4]} 6. Nf3 {[%clk 0:04:49.2]} 6... Bg4
{[%clk 0:04:42.3]} 7. Be3 {[%clk 0:04:47.7]} 7... e6 {[%clk 0:04:39.5]} 8. Bg2
{[%clk 0:04:46.4]} 8... Bb4 {[%clk 0:04:31.9]} 9. O-O {[%clk 0:04:43.5]} 9...
Bxc3 {[%clk 0:04:30.9]} 10. bxc3 {[%clk 0:04:42.1]} 10... O-O {[%clk 0:04:29.8]}
11. Qd3 {[%clk 0:04:38.4]} 11... Bf5 {[%clk 0:04:27.1]} 12. Qe2 {[%clk 0:04:34]}
12... Ne4 {[%clk 0:04:25.2]} 13. c4 {[%clk 0:04:24.9]} 13... Bg4 {[%clk
0:04:02.7]} 14. h3 {[%clk 0:04:22.4]} 14... Bh5 {[%clk 0:04:00.6]} 15. g4 {[%clk
0:04:21]} 15... Bg6 {[%clk 0:03:59.4]} 16. Rfd1 {[%clk 0:04:16.5]} 16... Nc3
{[%clk 0:03:56.8]} 17. Qd2 {[%clk 0:04:14.5]} 17... Nxd1 {[%clk 0:03:55.8]} 18.
Rxd1 {[%clk 0:04:13.3]} 18... Qe7 {[%clk 0:03:41.1]} 19. d5 {[%clk 0:04:09.5]}
19... Rad8 {[%clk 0:03:30.7]} 20. Qc3 {[%clk 0:04:02.9]} 20... exd5 {[%clk
0:03:25.1]} 21. cxd5 {[%clk 0:03:59]} 21... Nb8 {[%clk 0:03:18.8]} 22. Bxa7
{[%clk 0:03:47.9]} 22... Nd7 {[%clk 0:03:16.1]} 23. Be3 {[%clk 0:03:39.6]} 23...
Nf6 {[%clk 0:03:11.2]} 24. Bg5 {[%clk 0:03:31.9]} 24... h6 {[%clk 0:02:54.5]}
25. Bh4 {[%clk 0:03:24.9]} 25... Qd6 {[%clk 0:02:45.5]} 26. Bg3 {[%clk
0:03:14.6]} 26... Qb6 {[%clk 0:02:33.7]} 27. Bxc7 {[%clk 0:03:11]} 27... Rc8
{[%clk 0:02:26.6]} 28. Bxb6 {[%clk 0:03:08.9]} 28... Rxc3 {[%clk 0:02:25.4]} 29.
Ne5 {[%clk 0:02:38.6]} 29... Bxc2 {[%clk 0:02:20.3]} 30. Rd2 {[%clk 0:02:27.4]}
30... Ba4 {[%clk 0:02:08.9]} 31. d6 {[%clk 0:02:21.1]} 31... Ra8 {[%clk
0:01:50.1]} 32. Kh2 {[%clk 0:02:07.3]} 32... Bd7 {[%clk 0:01:44.1]} 33. Bd4
{[%clk 0:01:50.7]} 33... Rca3 {[%clk 0:01:33.2]} 34. Bxb7 {[%clk 0:01:46.2]}
34... Rxa2 {[%clk 0:01:25.2]} 35. Rxa2 {[%clk 0:01:42.6]} 35... Rxa2 {[%clk
0:01:24.1]} 36. Kg3 {[%clk 0:01:31.2]} 36... Ra4 {[%clk 0:01:19.4]} 37. Be3
{[%clk 0:01:22.7]} 37... Kf8 {[%clk 0:01:12.5]} 38. Nxd7+ {[%clk 0:01:19]} 38...
Nxd7 {[%clk 0:01:09.6]} 39. Bc6 {[%clk 0:01:17.1]} 39... Ke8 {[%clk 0:01:07.8]}
40. Bxa4 {[%clk 0:01:15.8]} 40... Kd8 {[%clk 0:01:04.5]} 41. Bxd7 {[%clk
0:01:12.8]} 41... Kxd7 {[%clk 0:01:03.8]} 42. Bf4 {[%clk 0:01:11]} 42... g5
{[%clk 0:01:02.7]} 43. Be5 {[%clk 0:01:09.8]} 43... f6 {[%clk 0:01:02]} 44. Bxf6
{[%clk 0:01:08.1]} 44... Kxd6 {[%clk 0:01:01.6]} 45. f4 {[%clk 0:01:06]} 45...
gxf4+ {[%clk 0:00:57.5]} 46. Kxf4 {[%clk 0:01:04.7]} 46... Ke6 {[%clk
0:00:57.1]} 47. g5 {[%clk 0:01:01.9]} 47... hxg5+ {[%clk 0:00:54.1]} 48. Kxg5
{[%clk 0:01:00.4]} 48... Kf7 {[%clk 0:00:53.6]} 49. h4 {[%clk 0:00:51.7]} 49...
Kg8 {[%clk 0:00:51.9]} 50. Kh6 {[%clk 0:00:47.8]} 50... Kf7 {[%clk 0:00:50]} 51.
Bb2 {[%clk 0:00:45.2]} 51... Kg8 {[%clk 0:00:49.3]} 52. h5 {[%clk 0:00:44.2]}
52... Kf7 {[%clk 0:00:48.4]} 53. Kh7 {[%clk 0:00:42.1]} 53... Kf8 {[%clk
0:00:46.9]} 54. h6 {[%clk 0:00:40.2]} 54... Kf7 {[%clk 0:00:46.1]} 55. Bg7
{[%clk 0:00:34.1]} 55... Ke8 {[%clk 0:00:41.7]} 56. Kg8 {[%clk 0:00:32.3]} 1-0

[Event "Live Chess"]
[Site "Chess.com"]
[Date "2023.05.20"]
[Round "-"]
[White "birdseed45"]
[Black "JackCheetham1"]
[Result "0-1"]
[WhiteElo "1852"]
[BlackElo "1704"]
[TimeControl "300"]
[EndTime "15:44:39 PDT"]
[Termination "JackCheetham1 won by checkmate"]

1. e4 {[%clk 0:04:58.3]} 1... c5 {[%clk 0:04:58.4]} 2. Nf3 {[%clk 0:04:56.2]}
2... d6 {[%clk 0:04:54.2]} 3. d4 {[%clk 0:04:55.5]} 3... cxd4 {[%clk 0:04:53.7]}
4. Nxd4 {[%clk 0:04:54.5]} 4... Nc6 {[%clk 0:04:52.8]} 5. Nc3 {[%clk 0:04:53.6]}
5... Nf6 {[%clk 0:04:51.4]} 6. Be3 {[%clk 0:04:51.2]} 6... g6 {[%clk 0:04:50.2]}
7. Bb5 {[%clk 0:04:48.1]} 7... Bd7 {[%clk 0:04:48.2]} 8. O-O {[%clk 0:04:45.6]}
8... Bg7 {[%clk 0:04:47.1]} 9. h3 {[%clk 0:04:39.1]} 9... a6 {[%clk 0:04:42.1]}
10. Ba4 {[%clk 0:04:36]} 10... O-O {[%clk 0:04:40.1]} 11. f4 {[%clk 0:04:31.1]}
11... b5 {[%clk 0:04:29.3]} 12. Bb3 {[%clk 0:04:19.2]} 12... e6 {[%clk
0:04:15.1]} 13. Nxc6 {[%clk 0:04:01.7]} 13... Bxc6 {[%clk 0:04:12]} 14. e5
{[%clk 0:04:00.5]} 14... dxe5 {[%clk 0:03:59.1]} 15. fxe5 {[%clk 0:04:00.4]}
15... Nd7 {[%clk 0:03:45.7]} 16. Bf4 {[%clk 0:03:54.4]} 16... Qb6+ {[%clk
0:03:41.1]} 17. Kh1 {[%clk 0:03:50.2]} 17... Qb7 {[%clk 0:03:29.2]} 18. Qe2
{[%clk 0:03:48]} 18... Rad8 {[%clk 0:03:21.4]} 19. Rad1 {[%clk 0:03:44.3]} 19...
Nc5 {[%clk 0:03:18.9]} 20. Rxd8 {[%clk 0:03:20.3]} 20... Rxd8 {[%clk 0:03:18.8]}
21. Kh2 {[%clk 0:03:17.3]} 21... Nxb3 {[%clk 0:03:12.8]} 22. axb3 {[%clk
0:03:17.2]} 22... h6 {[%clk 0:02:54.5]} 23. Nd1 {[%clk 0:03:14.5]} 23... g5
{[%clk 0:02:29]} 24. Bg3 {[%clk 0:03:08.9]} 24... Be4 {[%clk 0:01:54.2]} 25. Nc3
{[%clk 0:02:51.5]} 25... Bg6 {[%clk 0:01:41.6]} 26. Rd1 {[%clk 0:02:37.4]} 26...
Rc8 {[%clk 0:01:36]} 27. Rd6 {[%clk 0:02:26.8]} 27... b4 {[%clk 0:01:27.6]} 28.
Na4 {[%clk 0:02:14.8]} 28... Rxc2 {[%clk 0:01:21.7]} 29. Qf1 {[%clk 0:02:12.4]}
29... Qe4 {[%clk 0:01:10.9]} 30. Rxa6 {[%clk 0:01:50.2]} 30... Bxe5 {[%clk
0:01:00.6]} 31. Bxe5 {[%clk 0:01:34.7]} 31... Qxe5+ {[%clk 0:00:58.5]} 32. Kh1
{[%clk 0:01:30.5]} 32... Qg3 {[%clk 0:00:42.4]} 33. Ra8+ {[%clk 0:01:25.1]}
33... Kg7 {[%clk 0:00:41.4]} 34. Rd8 {[%clk 0:00:53.7]} 34... Be4 {[%clk
0:00:35.4]} 35. Qe1 {[%clk 0:00:32.9]} 35... Qxg2# {[%clk 0:00:30.9]} 0-1

[Event "Live Chess"]
[Site "Chess.com"]
[Date "2023.05.20"]
[Round "-"]
[White "AlanPaling"]
[Black "stevochess11"]
[Result "1-0"]
[WhiteElo "1272"]
[BlackElo "1748"]
[TimeControl "300"]
[EndTime "15:44:48 PDT"]
[Termination "AlanPaling won by checkmate"]

1. c4 {[%clk 0:04:58.6]} 1... c5 {[%clk 0:04:56.5]} 2. Nf3 {[%clk 0:04:56.4]}
2... Nf6 {[%clk 0:04:53.6]} 3. d4 {[%clk 0:04:55.9]} 3... cxd4 {[%clk
0:04:52.1]} 4. Nxd4 {[%clk 0:04:55.4]} 4... e6 {[%clk 0:04:49]} 5. Nc3 {[%clk
0:04:54.6]} 5... a6 {[%clk 0:04:41.9]} 6. e4 {[%clk 0:04:53.8]} 6... Qc7 {[%clk
0:04:37.4]} 7. Be3 {[%clk 0:04:47.8]} 7... b6 {[%clk 0:04:31.5]} 8. Rc1 {[%clk
0:04:45.8]} 8... Bb7 {[%clk 0:04:28.7]} 9. f3 {[%clk 0:04:42.9]} 9... d6 {[%clk
0:04:26.2]} 10. Be2 {[%clk 0:04:42]} 10... Nbd7 {[%clk 0:04:24.6]} 11. O-O
{[%clk 0:04:40]} 11... Be7 {[%clk 0:04:23.6]} 12. h3 {[%clk 0:04:32.3]} 12...
O-O {[%clk 0:04:20.9]} 13. b3 {[%clk 0:04:29.1]} 13... Rac8 {[%clk 0:04:19.1]}
14. Na4 {[%clk 0:04:26.4]} 14... Nc5 {[%clk 0:04:03]} 15. Nxc5 {[%clk
0:04:22.1]} 15... bxc5 {[%clk 0:04:02.1]} 16. Nc2 {[%clk 0:04:18.9]} 16... Rfd8
{[%clk 0:03:55.9]} 17. Ne1 {[%clk 0:04:09.5]} 17... d5 {[%clk 0:03:47.7]} 18.
cxd5 {[%clk 0:04:07.1]} 18... exd5 {[%clk 0:03:47.6]} 19. e5 {[%clk 0:04:02.6]}
19... Qxe5 {[%clk 0:03:41.3]} 20. Bf2 {[%clk 0:03:56.4]} 20... Bd6 {[%clk
0:03:38.9]} 21. g3 {[%clk 0:03:54.2]} 21... Nh5 {[%clk 0:03:35.5]} 22. f4 {[%clk
0:03:47.2]} 22... Nxf4 {[%clk 0:03:21.9]} 23. gxf4 {[%clk 0:03:45.9]} 23... Qxf4
{[%clk 0:03:20.6]} 24. Nf3 {[%clk 0:03:39.6]} 24... d4 {[%clk 0:03:15.2]} 25.
Re1 {[%clk 0:03:29.6]} 25... Re8 {[%clk 0:02:52]} 26. Kf1 {[%clk 0:03:27.3]}
26... Bxf3 {[%clk 0:02:40.5]} 27. Bxf3 {[%clk 0:03:24.8]} 27... Rxe1+ {[%clk
0:02:32.7]} 28. Bxe1 {[%clk 0:03:22.7]} 28... Re8 {[%clk 0:02:23.6]} 29. Bf2
{[%clk 0:03:18.3]} 29... h6 {[%clk 0:01:26]} 30. Rc4 {[%clk 0:03:16.3]} 30... g5
{[%clk 0:01:24.5]} 31. b4 {[%clk 0:03:02.3]} 31... f5 {[%clk 0:01:22.7]} 32.
bxc5 {[%clk 0:02:58.7]} 32... Bxc5 {[%clk 0:01:22.6]} 33. Bxd4 {[%clk
0:02:54.1]} 33... Bd6 {[%clk 0:01:22.5]} 34. Qd3 {[%clk 0:02:40.6]} 34... Bc5
{[%clk 0:01:22.4]} 35. Bxc5 {[%clk 0:02:36.4]} 35... Qh2 {[%clk 0:01:19.3]} 36.
Bd5+ {[%clk 0:02:32.2]} 36... Kg7 {[%clk 0:01:16.5]} 37. Bd4+ {[%clk 0:02:28.2]}
37... Kg6 {[%clk 0:01:15.1]} 38. Rc6+ {[%clk 0:02:26.8]} 38... Kh5 {[%clk
0:01:13.9]} 39. Qf3+ {[%clk 0:02:20.4]} 39... g4 {[%clk 0:01:12.1]} 40. hxg4+
{[%clk 0:02:15.4]} 40... fxg4 {[%clk 0:01:10.9]} 41. Qf5+ {[%clk 0:02:11.7]}
41... Kh4 {[%clk 0:01:08.1]} 42. Bf2+ {[%clk 0:02:09.8]} 42... g3 {[%clk
0:00:56.1]} 43. Rxh6# {[%clk 0:02:06.8]} 1-0

[Event "Live Chess"]
[Site "Chess.com"]
[Date "2023.05.20"]
[Round "-"]
[White "Daniel_Gliddon_FA"]
[Black "Fazer180"]
[Result "0-1"]
[WhiteElo "1263"]
[BlackElo "1755"]
[TimeControl "300"]
[EndTime "15:44:49 PDT"]
[Termination "Fazer180 won on time"]

1. e4 {[%clk 0:04:54.5]} 1... e6 {[%clk 0:04:59.9]} 2. d4 {[%clk 0:04:49.5]}
2... d5 {[%clk 0:04:59.8]} 3. exd5 {[%clk 0:04:47.5]} 3... exd5 {[%clk
0:04:58.5]} 4. Nf3 {[%clk 0:04:45.6]} 4... Be6 {[%clk 0:04:57.2]} 5. c4 {[%clk
0:04:41.6]} 5... dxc4 {[%clk 0:04:54.3]} 6. Nc3 {[%clk 0:04:34.6]} 6... Bb4
{[%clk 0:04:46.2]} 7. Bd2 {[%clk 0:04:27.7]} 7... Nc6 {[%clk 0:04:40.8]} 8. a3
{[%clk 0:04:25]} 8... Bxc3 {[%clk 0:04:33]} 9. Bxc3 {[%clk 0:04:21.3]} 9... Bd5
{[%clk 0:04:30.7]} 10. Be2 {[%clk 0:04:10.3]} 10... Nf6 {[%clk 0:04:28.8]} 11.
O-O {[%clk 0:04:06.8]} 11... O-O {[%clk 0:04:27.2]} 12. Ne5 {[%clk 0:03:56.4]}
12... Nxe5 {[%clk 0:04:06.9]} 13. dxe5 {[%clk 0:03:53.6]} 13... Ne4 {[%clk
0:04:03.5]} 14. Bd4 {[%clk 0:03:48.1]} 14... c5 {[%clk 0:03:52.5]} 15. Bc3
{[%clk 0:03:43.5]} 15... Nxc3 {[%clk 0:03:49.5]} 16. bxc3 {[%clk 0:03:34.6]}
16... Re8 {[%clk 0:03:35.9]} 17. f4 {[%clk 0:03:26.9]} 17... Be6 {[%clk
0:03:05.7]} 18. f5 {[%clk 0:03:19.9]} 18... Bd5 {[%clk 0:02:57.4]} 19. e6 {[%clk
0:03:09.3]} 19... fxe6 {[%clk 0:02:53.7]} 20. fxe6 {[%clk 0:03:07.4]} 20... Bxe6
{[%clk 0:02:49.9]} 21. Bh5 {[%clk 0:02:57.4]} 21... Qxd1 {[%clk 0:02:36.1]} 22.
Raxd1 {[%clk 0:02:53.1]} 22... Red8 {[%clk 0:02:35]} 23. Rde1 {[%clk 0:02:46.8]}
23... g6 {[%clk 0:02:08.5]} 24. Bxg6 {[%clk 0:02:28.2]} 24... hxg6 {[%clk
0:02:03.8]} 25. Rxe6 {[%clk 0:02:26.5]} 25... Kh7 {[%clk 0:01:49.1]} 26. Rf7+
{[%clk 0:02:19.5]} 26... Kh6 {[%clk 0:01:43.8]} 27. Rff6 {[%clk 0:02:15.9]}
27... Rg8 {[%clk 0:01:33]} 28. g4 {[%clk 0:02:06.8]} 28... Raf8 {[%clk
0:01:27.9]} 29. h4 {[%clk 0:01:57.8]} 29... Rxf6 {[%clk 0:01:24.7]} 30. Rxf6
{[%clk 0:01:55.1]} 30... Kg7 {[%clk 0:01:20.1]} 31. g5 {[%clk 0:01:53.1]} 31...
Rd8 {[%clk 0:01:09.5]} 32. Kf2 {[%clk 0:01:48.8]} 32... Rd3 {[%clk 0:01:07.2]}
33. Re6 {[%clk 0:01:37.5]} 33... Rxc3 {[%clk 0:01:00.9]} 34. Re7+ {[%clk
0:01:36.1]} 34... Kf8 {[%clk 0:00:59.1]} 35. Rxb7 {[%clk 0:01:34.5]} 35... Rxa3
{[%clk 0:00:58.3]} 36. Rc7 {[%clk 0:01:31]} 36... Ra5 {[%clk 0:00:55.7]} 37. Rc6
{[%clk 0:01:28.3]} 37... Kf7 {[%clk 0:00:48.9]} 38. Rc7+ {[%clk 0:01:25.8]}
38... Ke6 {[%clk 0:00:46.8]} 39. Rc6+ {[%clk 0:01:24.7]} 39... Kf5 {[%clk
0:00:46.5]} 40. Rf6+ {[%clk 0:01:20]} 40... Kg4 {[%clk 0:00:45.7]} 41. Rxg6
{[%clk 0:01:16.1]} 41... Kxh4 {[%clk 0:00:45.6]} 42. Rg8 {[%clk 0:01:13.3]}
42... c3 {[%clk 0:00:42.5]} 43. Ke3 {[%clk 0:01:10]} 43... c4 {[%clk 0:00:38.5]}
44. g6 {[%clk 0:01:05.1]} 44... Rd5 {[%clk 0:00:33.2]} 45. g7 {[%clk 0:01:00.9]}
45... c2 {[%clk 0:00:27.1]} 46. Rh8+ {[%clk 0:00:58.1]} 46... Rh5 {[%clk
0:00:25]} 47. g8=Q {[%clk 0:00:50.8]} 47... c1=Q+ {[%clk 0:00:23.4]} 48. Kd4
{[%clk 0:00:41.6]} 48... Qb2+ {[%clk 0:00:20.8]} 49. Ke3 {[%clk 0:00:28.7]}
49... Rxh8 {[%clk 0:00:19.9]} 50. Qxc4+ {[%clk 0:00:20.9]} 50... Kh3 {[%clk
0:00:19.4]} 51. Qe6+ {[%clk 0:00:17.2]} 51... Kh2 {[%clk 0:00:17.2]} 52. Qd6+
{[%clk 0:00:09.1]} 52... Kg1 {[%clk 0:00:15.1]} 53. Qg3+ {[%clk 0:00:06.8]}
53... Qg2 {[%clk 0:00:12.6]} 54. Qe1+ {[%clk 0:00:04.3]} 54... Kh2 {[%clk
0:00:12.3]} 0-1

[Event "Live Chess"]
[Site "Chess.com"]
[Date "2023.05.20"]
[Round "-"]
[White "SupremeTactician"]
[Black "WelshTiger"]
[Result "0-1"]
[WhiteElo "2346"]
[BlackElo "2369"]
[TimeControl "300"]
[EndTime "15:44:59 PDT"]
[Termination "WelshTiger won by resignation"]

1. e4 {[%clk 0:04:53.2]} 1... c5 {[%clk 0:04:58.2]} 2. Nf3 {[%clk 0:04:52.3]}
2... d6 {[%clk 0:04:57.4]} 3. d4 {[%clk 0:04:51.5]} 3... cxd4 {[%clk 0:04:57.3]}
4. Nxd4 {[%clk 0:04:51.3]} 4... Nf6 {[%clk 0:04:56]} 5. f3 {[%clk 0:04:48.2]}
5... e6 {[%clk 0:04:44.2]} 6. c4 {[%clk 0:04:46.7]} 6... Be7 {[%clk 0:04:42.5]}
7. Nc3 {[%clk 0:04:45.5]} 7... O-O {[%clk 0:04:41.4]} 8. Be3 {[%clk 0:04:45]}
8... Nc6 {[%clk 0:04:40.8]} 9. Qd2 {[%clk 0:04:43.8]} 9... Nxd4 {[%clk
0:04:39.5]} 10. Bxd4 {[%clk 0:04:43.7]} 10... d5 {[%clk 0:04:35]} 11. cxd5
{[%clk 0:04:42.1]} 11... exd5 {[%clk 0:04:34.4]} 12. exd5 {[%clk 0:04:40.2]}
12... Bf5 {[%clk 0:04:27.9]} 13. Be2 {[%clk 0:04:34.5]} 13... b5 {[%clk
0:04:13.3]} 14. Bxb5 {[%clk 0:04:21.3]} 14... Rb8 {[%clk 0:03:52.5]} 15. O-O
{[%clk 0:04:17.1]} 15... Nxd5 {[%clk 0:03:47]} 16. Bc4 {[%clk 0:04:12.7]} 16...
Nxc3 {[%clk 0:03:43.4]} 17. bxc3 {[%clk 0:04:07.4]} 17... Bf6 {[%clk 0:03:41.5]}
18. Rad1 {[%clk 0:04:03.6]} 18... Bxd4+ {[%clk 0:03:40.2]} 19. Qxd4 {[%clk
0:04:02.7]} 19... Qa5 {[%clk 0:03:39.6]} 20. Bb3 {[%clk 0:03:44.1]} 20... Bg6
{[%clk 0:03:36.8]} 21. c4 {[%clk 0:03:35.2]} 21... Rbc8 {[%clk 0:03:34.6]} 22.
Qd5 {[%clk 0:03:24.9]} 22... Rc5 {[%clk 0:03:33.6]} 23. Qd6 {[%clk 0:03:21]}
23... h6 {[%clk 0:03:21.5]} 24. Rd5 {[%clk 0:03:14.1]} 24... Rfc8 {[%clk
0:03:18.6]} 25. Rxc5 {[%clk 0:03:08]} 25... Rxc5 {[%clk 0:03:17.7]} 26. Rd1
{[%clk 0:03:06.3]} 26... Kh7 {[%clk 0:03:15.6]} 27. h3 {[%clk 0:02:55.6]} 27...
Rg5 {[%clk 0:03:10.6]} 28. Rd5 {[%clk 0:02:45]} 28... Qe1+ {[%clk 0:03:09.2]}
29. Kh2 {[%clk 0:02:44.4]} 29... f5 {[%clk 0:02:45]} 30. Rd1 {[%clk 0:02:17.1]}
30... Qf2 {[%clk 0:02:39.3]} 31. Rg1 {[%clk 0:02:15.6]} 31... Bh5 {[%clk
0:02:31]} 32. Qf4 {[%clk 0:01:55.9]} 32... Qc5 {[%clk 0:02:07.5]} 33. Rd1 {[%clk
0:01:35.1]} 33... Qf2 {[%clk 0:01:54]} 34. Rg1 {[%clk 0:01:33.7]} 34... Qc5
{[%clk 0:01:52.9]} 35. g4 {[%clk 0:01:16.1]} 35... Bg6 {[%clk 0:01:49.1]} 36. h4
{[%clk 0:01:13.5]} 36... fxg4 {[%clk 0:01:35.3]} 37. hxg5 {[%clk 0:01:08.6]}
37... Qf2+ {[%clk 0:01:34.5]} 38. Kh1 {[%clk 0:01:00.6]} 38... gxf3 {[%clk
0:01:20.9]} 39. gxh6 {[%clk 0:00:51.1]} 39... Qe2 {[%clk 0:01:15.5]} 40. Qg4
{[%clk 0:00:44.8]} 40... Qd3 {[%clk 0:01:12.5]} 41. Qxg6+ {[%clk 0:00:37]} 41...
Qxg6 {[%clk 0:01:11.2]} 42. Rxg6 {[%clk 0:00:36.3]} 42... f2 {[%clk 0:01:09.9]}
43. hxg7 {[%clk 0:00:36.2]} 43... f1=Q+ {[%clk 0:01:08.4]} 44. Kh2 {[%clk
0:00:19.8]} 44... Qf2+ {[%clk 0:01:00.6]} 45. Kh1 {[%clk 0:00:18.5]} 45... Qh4+
{[%clk 0:00:52.2]} 46. Kg2 {[%clk 0:00:17.9]} 46... Qe4+ {[%clk 0:00:51.4]} 47.
Kf2 {[%clk 0:00:17.3]} 47... Qxg6 {[%clk 0:00:50.7]} 48. c5 {[%clk 0:00:13.9]}
48... Qxg7 {[%clk 0:00:49.3]} 0-1

[Event "Live Chess"]
[Site "Chess.com"]
[Date "2023.05.20"]
[Round "-"]
[White "JoshMcK"]
[Black "martynstanley"]
[Result "0-1"]
[WhiteElo "1518"]
[BlackElo "1002"]
[TimeControl "300"]
[EndTime "15:45:09 PDT"]
[Termination "martynstanley won by resignation"]

1. e4 {[%clk 0:04:57.8]} 1... e6 {[%clk 0:04:59.5]} 2. d4 {[%clk 0:04:56.2]}
2... d5 {[%clk 0:04:58.9]} 3. Nc3 {[%clk 0:04:53.2]} 3... c5 {[%clk 0:04:58.2]}
4. exd5 {[%clk 0:04:49.4]} 4... exd5 {[%clk 0:04:57.1]} 5. dxc5 {[%clk
0:04:48.6]} 5... Bxc5 {[%clk 0:04:55.7]} 6. Qxd5 {[%clk 0:04:46.4]} 6... Qb6
{[%clk 0:04:54.8]} 7. Ne4 {[%clk 0:04:28.2]} 7... Ne7 {[%clk 0:04:51.7]} 8. Qxc5
{[%clk 0:04:25.3]} 8... Qxc5 {[%clk 0:04:50.2]} 9. Nxc5 {[%clk 0:04:24.5]} 9...
O-O {[%clk 0:04:49.3]} 10. Nf3 {[%clk 0:04:22.7]} 10... Re8 {[%clk 0:04:48.3]}
11. Be2 {[%clk 0:04:20.7]} 11... Nd5 {[%clk 0:04:46.9]} 12. Nd3 {[%clk
0:04:09.9]} 12... Bf5 {[%clk 0:04:43.7]} 13. Nd4 {[%clk 0:04:04.5]} 13... Bxd3
{[%clk 0:04:42.2]} 14. cxd3 {[%clk 0:04:02.8]} 14... Nc6 {[%clk 0:04:41.4]} 15.
O-O {[%clk 0:03:59.7]} 15... Nxd4 {[%clk 0:04:40.2]} 16. Bg4 {[%clk 0:03:51.6]}
16... Re7 {[%clk 0:04:38.2]} 17. Bg5 {[%clk 0:03:49.3]} 17... f6 {[%clk
0:04:31.4]} 18. Bh4 {[%clk 0:03:46.7]} 18... Rae8 {[%clk 0:04:30.1]} 19. f3
{[%clk 0:03:37.1]} 19... Ne2+ {[%clk 0:04:28.9]} 20. Kh1 {[%clk 0:03:35.4]}
20... Nef4 {[%clk 0:04:26]} 21. Bf5 {[%clk 0:03:27.5]} 21... Ne3 {[%clk
0:04:22.4]} 22. Be4 {[%clk 0:03:20.6]} 22... Nxf1 {[%clk 0:04:20.8]} 23. Rxf1
{[%clk 0:03:20.5]} 23... g5 {[%clk 0:04:18.6]} 24. Bg3 {[%clk 0:03:18.9]} 24...
b6 {[%clk 0:04:16]} 25. h3 {[%clk 0:03:13.2]} 25... h5 {[%clk 0:04:14.9]} 26.
Bxf4 {[%clk 0:02:56.4]} 26... gxf4 {[%clk 0:04:12.2]} 27. Rc1 {[%clk 0:02:53.3]}
27... Kf7 {[%clk 0:04:09.5]} 28. Rc6 {[%clk 0:02:49.4]} 28... Rd7 {[%clk
0:04:07.4]} 29. Rc3 {[%clk 0:02:44.3]} 29... Ree7 {[%clk 0:04:06.3]} 30. Kg1
{[%clk 0:02:39.1]} 30... Rc7 {[%clk 0:04:05]} 31. Rxc7 {[%clk 0:02:34.8]} 31...
Rxc7 {[%clk 0:04:03.7]} 32. Bd5+ {[%clk 0:02:31.9]} 32... Ke7 {[%clk 0:04:01.8]}
33. Bb3 {[%clk 0:02:31.4]} 33... Rc1+ {[%clk 0:04:00.2]} 34. Kf2 {[%clk
0:02:29.1]} 34... Rb1 {[%clk 0:03:59.2]} 35. h4 {[%clk 0:02:22.7]} 35... Rxb2+
{[%clk 0:03:58]} 36. Kf1 {[%clk 0:02:22.1]} 36... Kd6 {[%clk 0:03:48.9]} 37. Kg1
{[%clk 0:02:19.6]} 37... a5 {[%clk 0:03:47.9]} 38. Kf1 {[%clk 0:02:18.3]} 38...
Kc5 {[%clk 0:03:47]} 39. Bc4 {[%clk 0:02:16.9]} 39... b5 {[%clk 0:03:45.2]} 40.
Bb3 {[%clk 0:02:15.8]} 40... a4 {[%clk 0:03:44]} 41. Be6 {[%clk 0:02:14.8]}
41... Kd4 {[%clk 0:03:41.6]} 42. Ke1 {[%clk 0:02:13]} 42... Kxd3 {[%clk
0:03:40.4]} 0-1

[Event "Live Chess"]
[Site "Chess.com"]
[Date "2023.05.20"]
[Round "-"]
[White "fso"]
[Black "gmnorfolk"]
[Result "0-1"]
[WhiteElo "2228"]
[BlackElo "2137"]
[TimeControl "300"]
[EndTime "15:45:12 PDT"]
[Termination "gmnorfolk won by resignation"]

1. d4 {[%clk 0:04:58.4]} 1... Nf6 {[%clk 0:04:58.5]} 2. c4 {[%clk 0:04:57]} 2...
e6 {[%clk 0:04:57.5]} 3. Nc3 {[%clk 0:04:56]} 3... Bb4 {[%clk 0:04:56.5]} 4. Nf3
{[%clk 0:04:54.5]} 4... d5 {[%clk 0:04:53.6]} 5. e3 {[%clk 0:04:51.5]} 5... O-O
{[%clk 0:04:51.5]} 6. Bd3 {[%clk 0:04:48.7]} 6... dxc4 {[%clk 0:04:48.6]} 7.
Bxc4 {[%clk 0:04:46.5]} 7... c5 {[%clk 0:04:48.3]} 8. O-O {[%clk 0:04:44.7]}
8... cxd4 {[%clk 0:04:46.9]} 9. Qxd4 {[%clk 0:04:38.9]} 9... Qxd4 {[%clk
0:04:44.9]} 10. Nxd4 {[%clk 0:04:35.3]} 10... Bxc3 {[%clk 0:04:44.5]} 11. bxc3
{[%clk 0:04:34.3]} 11... b6 {[%clk 0:04:43.9]} 12. Ba3 {[%clk 0:04:26.3]} 12...
Rd8 {[%clk 0:04:36.2]} 13. Be7 {[%clk 0:04:23.6]} 13... Rd7 {[%clk 0:04:31]} 14.
Bxf6 {[%clk 0:04:03.7]} 14... gxf6 {[%clk 0:04:30.9]} 15. Bb5 {[%clk 0:04:01.3]}
15... Rc7 {[%clk 0:04:27]} 16. Rfc1 {[%clk 0:04:00.7]} 16... a6 {[%clk
0:04:19.5]} 17. Be2 {[%clk 0:03:58.7]} 17... Bb7 {[%clk 0:04:16]} 18. Rab1
{[%clk 0:03:56.3]} 18... Nd7 {[%clk 0:04:14.6]} 19. c4 {[%clk 0:03:43.7]} 19...
Rac8 {[%clk 0:04:10.4]} 20. a4 {[%clk 0:03:40.9]} 20... Be4 {[%clk 0:04:03]} 21.
Rb4 {[%clk 0:03:36.1]} 21... e5 {[%clk 0:03:44.6]} 22. Nf3 {[%clk 0:03:27.4]}
22... Kf8 {[%clk 0:03:26.4]} 23. Nd2 {[%clk 0:03:24.1]} 23... Bc6 {[%clk
0:03:21.1]} 24. a5 {[%clk 0:03:10.9]} 24... bxa5 {[%clk 0:03:19.2]} 25. Rb2
{[%clk 0:03:06.7]} 25... Nc5 {[%clk 0:03:09.9]} 26. Nb3 {[%clk 0:02:58.9]} 26...
Rb7 {[%clk 0:03:05.9]} 27. Nxc5 {[%clk 0:02:09]} 27... Rxb2 {[%clk 0:03:01.6]}
28. Bf1 {[%clk 0:02:04.1]} 28... a4 {[%clk 0:02:41.7]} 29. Nxa6 {[%clk
0:01:58.6]} 29... Ra8 {[%clk 0:02:30.9]} 30. Nc7 {[%clk 0:01:53.9]} 30... Rc8
{[%clk 0:02:27.1]} 31. Na6 {[%clk 0:01:47.4]} 31... a3 {[%clk 0:02:25.4]} 32.
Ra1 {[%clk 0:01:45]} 32... a2 {[%clk 0:02:23.8]} 33. h3 {[%clk 0:01:43]} 33...
Ra8 {[%clk 0:02:18.8]} 34. c5 {[%clk 0:01:34.6]} 34... Rxa6 {[%clk 0:02:14.5]}
35. Bxa6 {[%clk 0:01:32.8]} 35... Rb1+ {[%clk 0:02:13.8]} 0-1